[Event "Indian Rapid Championship 2023-24"]
[Site "Nashik"]
[Date "2024.03.05"]
[Round "5.5"]
[White "Raahul V S"]
[Black "Mitrabha, Guha"]
[Result "0-1"]
[ECO "A50"]
[WhiteElo "2314"]
[BlackElo "2526"]
[Annotator "TA"]
[PlyCount "99"]
[EventDate "2024.03.02"]
[EventType "swiss"]
[EventCountry "IND"]
[SourceTitle "playchess.com"]
[Source "ChessBase"]
[SourceQuality "1"]
[TimeControl "900+10"]

{[%evp 10,99,29,18,32,29,19,26,26,14,12,8,16,23,72,0,40,26,39,-7,0,0,0,0,14,-4,0,0,17,-58,-70,-57,-60,-57,-67,-62,-56,-37,-36,-35,-37,-37,-33,-31,-39,-35,-35,-31,-30,-35,-27,-26,-31,-32,-30,-43,-20,-21,-21,-16,-16,-32,-27,-52,-43,-52,-60,-53,-23,-23,-14,-14,0,-13,-8,-69,-61,-61,-61,-62,-64,-65,-62,-147,-96,-158,-166,-894,-886,-2804,-1592,-1592]} 1. d4 {[%emt 0:03:55]} Nf6 {[%emt 0:00:15][%cal Bg8f6,Bf6d5,Bd5c3][%mdl 32]} 2. c4 {[%emt 0:00:05]} b6 {[%emt 0:00:16]} 3. Nc3 {[%emt 0:00:03]} Bb7 {[%emt 0:00:01]} 4. Qc2 {[%emt 0:00:02]} d5 {[%emt 0:00:08]} 5. cxd5 {[%emt 0:00:02]} Nxd5 {[%emt 0:00:01]} 6. e4 {[%emt 0:00:02]} Nxc3 {[%emt 0:00:02]} 7. bxc3 {[%emt 0:00:01]} e6 {[%emt 0:00:00]} 8. Nf3 {[%emt 0:00:08]} Be7 {[%emt 0:00:06] White has an edge.} 9. Bb5+ {[%emt 0:00:05]} c6 $1 {[%emt 0:00:02][%cal Bc7c6,Bc6c5][%mdl 32]} 10. Bd3 {[%emt 0:00:02]} c5 {[%emt 0:00:06]} 11. O-O {[%emt 0:00:44][%cal Od4d5]} O-O {[%emt 0:00:24]} (11... cxd4 $1 $11 {is more appropriate.} 12. cxd4 O-O) 12. Be3 {[%emt 0:00:05]} (12. d5 $1 $16) 12... Nd7 {[%emt 0:00:15]} 13. Rfd1 {[%emt 0:00:10]} Rc8 {[%emt 0:00:16]} 14. Qa4 {[%emt 0:00:17]} (14. Qe2 $14) 14... cxd4 {[%emt 0:00:22]} 15. cxd4 {[%emt 0:00:09]} a6 {[%emt 0:00:05]} 16. Qb3 {[%emt 0:00:10] Inhibits Rc3.} (16. Bxa6 $2 {is the wrong capture.} Ra8 17. Ne5 Nf6 $19 (17... Bxa6 18. Qxd7 Bf6 19. Qc6 $16) (17... Nxe5 18. dxe5 Rxa6 19. Rxd8 $15)) 16... b5 {[%emt 0:00:09]} 17. Rac1 {[%emt 0:00:40]} Rxc1 {[%emt 0:00:31]} 18. Rxc1 {[%emt 0:00:15]} Nf6 {[%emt 0:00:02][%cal Bd7f6,Bf6e4,Be4c3,Bc3a4,Ba4b2][%mdl 32]} 19. Qc2 {[%emt 0:00:10]} (19. Qb1 $1 $11) 19... Qa8 $1 $15 {[%emt 0:00:57][%cal Of8c8]} 20. e5 {[%emt 0:01:26]} Rc8 {[%emt 0:00:35]} 21. Qb1 {[%emt 0:00:08]} Rxc1+ {[%emt 0:00:23]} 22. Bxc1 {[%emt 0:00:08]} Ne4 {[%emt 0:00:19]} 23. Ne1 {[%emt 0:00:02]} Bd5 {[%emt 0:01:38]} 24. a3 {[%emt 0:00:56]} Qc6 {[%emt 0:00:14][%cal Oc6c3]} 25. f3 {[%emt 0:00:04]} Nc3 {[%emt 0:02:31]} 26. Qc2 {[%emt 0:00:11]} g6 {[%emt 0:00:07]} 27. Bd2 {[%emt 0:00:42]} Na4 {[%emt 0:01:20]} 28. Qxc6 {[%emt 0:00:03]} Bxc6 {[%emt 0:00:01]} 29. Nc2 {[%emt 0:00:01]} Nb2 {[%emt 0:00:57]} 30. Be2 {[%emt 0:00:33]} Bd5 {[%emt 0:00:16]} 31. Bb4 {[%emt 0:00:30]} Bg5 {[%emt 0:00:08] ...Bb3 would now be deadly.} 32. Kf2 {[%emt 0:00:34]} Nc4 {[%emt 0:00:23]} 33. Bxc4 {[%emt 0:00:58]} Bxc4 $11 {[%emt 0:00:13][%mdl 4096] Endgame. KBB-KBN} 34. Ne3 {[%emt 0:00:02]} Bb3 {[%emt 0:00:04]} 35. Ke2 {[%emt 0:00:06]} f5 {[%emt 0:00:28][%cal Bf7f5,Bf5f4][%mdl 32]} 36. Kd3 {[%emt 0:01:14]} h5 {[%emt 0:00:28]} 37. Bd2 {[%emt 0:01:36]} f4 $1 {[%emt 0:00:40]} 38. Nc2 {[%emt 0:00:02]} Bc4+ {[%emt 0:00:01]} 39. Ke4 {[%emt 0:00:22]} Bd5+ {[%emt 0:00:15]} 40. Kd3 {[%emt 0:00:01]} Bh6 {[%emt 0:00:15]} 41. Nb4 {[%emt 0:00:29]} Bc4+ {[%emt 0:02:54]} 42. Ke4 (42. Kc2 $11) 42... a5 $15 {[%emt 0:00:00]} 43. Nc2 {[%emt 0:00:11]} Bb3 {[%emt 0:00:00]} 44. Kd3 {[%emt 0:00:40]} a4 $1 {[%emt 0:00:00]} 45. Nb4 {[%emt 0:00:29][%cal Od4d5]} g5 {[%emt 0:00:00]} 46. h4 {[%emt 0:01:02] [#]} gxh4 {[%emt 0:00:00]} (46... Bc4+ $142 $1 47. Ke4 gxh4) 47. Ke4 {[%emt 0:00:05]} (47. Ke2 $142) 47... Bf8 $17 {[%emt 0:00:08]} 48. Bxf4 $2 {[%emt 0:01:10]} (48. Be1) 48... Bxb4 $19 {[%emt 0:00:07]} 49. axb4 {[%emt 0:00:02]} Bc2+ {[%emt 0:00:07]} 50. Ke3 {[%emt 0:00:04] Weighted Error Value: White=0.42/Black=0.05 (flawless) .  Mistake:       	White=7     	Black=2      Inaccurate:     	White=1     	Black=2      OK:         	White=17    	Black=21     Best:        	White=1     	Black=1      Strong:       	---       	Black=4} 0-1

[Event "Indian Rapid Championship 2023-24"]
[Site "Nashik"]
[Date "2024.03.05"]
[Round "5.6"]
[White "Neelotpal, Das"]
[Black "Utsab Chatterjee"]
[Result "1-0"]
[ECO "D37"]
[WhiteElo "2355"]
[BlackElo "2301"]
[Annotator "TA"]
[PlyCount "105"]
[EventDate "2024.03.02"]
[EventType "swiss"]
[EventCountry "IND"]
[SourceTitle "playchess.com"]
[Source "ChessBase"]
[SourceQuality "1"]
[TimeControl "900+10"]

{[%evp 22,105,0,6,0,5,34,43,54,32,12,0,0,0,0,-56,-8,-7,16,23,27,31,18,22,144,141,143,89,100,49,49,14,30,10,10,10,9,10,10,0,31,21,49,36,56,54,91,58,144,101,110,98,105,73,154,107,120,110,107,31,260,283,304,302,359,329,345,319,702,698,520,510,517,486,939,825,800,748,1222,1166,2062,2049,29986,29986,29986,29984]} 1. d4 {[%emt 0:00:05]} d5 {[%emt 0:00:03]} 2. c4 {[%emt 0:00:04]} e6 {[%emt 0:00:02]} 3. Nf3 {[%emt 0:00:24]} Nf6 {[%emt 0:00:04]} 4. Nc3 {[%emt 0:00:01]} Be7 {[%emt 0:00:05]} 5. Bf4 {[%emt 0:00:09]} O-O {[%emt 0:00:06]} 6. e3 {[%emt 0:00:04]} Nbd7 {[%emt 0:00:03]} 7. c5 {[%emt 0:00:12] D37: Damengambit (5.Lf4).} c6 {[%emt 0:00:02]} 8. b4 {[%emt 0:00:17]} b6 {[%emt 0:00:02]} 9. h4 {[%emt 0:00:06]} a5 {[%emt 0:00:08]} 10. a3 {[%emt 0:00:41]} Ba6 {[%emt 0:00:03]} 11. Bxa6 {[%emt 0:00:31]} Rxa6 {[%emt 0:00:02]} 12. Qe2 $146 {[%emt 0:01:33]} ({Predecessor:} 12. b5 cxb5 13. c6 Qc8 14. c7 b4 15. Nb5 a4 16. Qc2 b3 17. Qe2 Ra8 18. Rc1 {0-1 Mamedyarov,S (2759)-Sargissian,G (2698) Olympiad-44 Chennai 2022 (10.1)}) 12... b5 {[%emt 0:03:02]} 13. O-O {[%emt 0:01:02]} Ne4 {[%emt 0:03:03]} 14. Nxe4 {[%emt 0:01:50]} dxe4 {[%emt 0:00:02]} 15. Nd2 {[%emt 0:02:58]} Qa8 $1 {[%emt 0:00:19]} 16. Rab1 {[%emt 0:01:41]} ({Ein No Go ist} 16. Nxe4 axb4 (16... Bxh4 17. Qb2 $16) 17. a4 Rxa4 $15 (17... bxa4 18. Rfb1 $15)) (16. bxa5 {ist vielschichtiger.} Rxa5 17. Nxe4 Bxh4 18. Qg4) 16... axb4 {[%emt 0:00:32]} 17. axb4 {[%emt 0:00:02]} Ra2 {[%emt 0:00:01]} 18. h5 {[%emt 0:00:11]} ({Besser ist} 18. Qd1 $11) 18... h6 {[%emt 0:00:43]} (18... f5 $1 $15) 19. Qd1 $11 {[%emt 0:00:08]} Nf6 {[%emt 0:00:43]} (19... f5 {ist interessant.} 20. Qb3 Kf7 21. g4 Ra3) 20. Be5 {[%emt 0:00:19]} Nd5 $1 {[%emt 0:00:12]} 21. Nxe4 {[%emt 0:00:34]} f5 {[%emt 0:00:20]} 22. Nd6 {[%emt 0:00:02]} Bxd6 {[%emt 0:00:24]} (22... Qa4 $11 {hält das Gleichgewicht.}) 23. cxd6 $16 {[%emt 0:00:08]} Rf7 {[%emt 0:00:08]} 24. Qc1 {[%emt 0:01:28]} (24. Rb3 $142) 24... Rfa7 $16 {[%emt 0:02:18]} 25. Qc5 {[%emt 0:00:10]} (25. Re1 $16) 25... Qe8 $14 {[%emt 0:00:01]} 26. Rbc1 {[%emt 0:00:46]} R2a6 {[%emt 0:00:07]} 27. Rfe1 {[%emt 0:00:48]} Qxh5 {[%emt 0:00:07]} 28. e4 {[%emt 0:00:01]} fxe4 {[%emt 0:00:16]} 29. Rxe4 {[%emt 0:00:00]} Qf5 {[%emt 0:00:15]} 30. Ree1 {[%emt 0:00:22]} Qf7 {[%emt 0:00:25]} 31. Bg3 {[%emt 0:00:10]} Ra8 {[%emt 0:00:42]} 32. Rc2 {[%emt 0:00:09]} Qd7 {[%emt 0:00:06]} 33. Rce2 {[%emt 0:00:08]} Re8 {[%emt 0:00:01]} 34. Be5 {[%emt 0:00:18]} Ra3 {[%emt 0:00:08]} (34... Rf8 $14) 35. Rc1 {[%emt 0:00:03]} Rc8 {[%emt 0:00:02] [#]} 36. Re4 $1 {[%emt 0:00:06]} h5 {[%emt 0:00:55]} 37. Ree1 {[%emt 0:00:37]} Ra4 {[%emt 0:00:15]} (37... Qa7 $142) 38. Ra1 {[%emt 0:00:08]} (38. Rb1 $142) 38... Rca8 $16 {[%emt 0:00:05]} 39. Rab1 {[%emt 0:00:39]} Ra2 {[%emt 0:00:13]} 40. Rec1 {[%emt 0:00:14]} (40. Qc1 $16) 40... R8a6 $2 {[%emt 0:00:24] [#]} ({Vorzuziehen ist} 40... Qf7 $14 41. Rf1 (41. Qxc6 $2 {führt zum Matt.} Qxf2+ 42. Kh2 Qxg2#) 41... Rf8) 41. Rb3 $1 $18 {[%emt 0:00:01]} h4 {[%emt 0:00:12]} 42. Rf3 {[%emt 0:00:07]} R2a4 {[%emt 0:00:15]} 43. Rb1 {[%emt 0:00:34]} Ra8 {[%emt 0:00:24]} 44. Kh2 {[%emt 0:00:04]} Rf8 $2 {[%emt 0:00:03]} (44... R4a6 45. Qc1 Qd8) 45. Rxf8+ $18 {[%emt 0:00:05]} Kxf8 {[%emt 0:00:00]} 46. Rb3 {[%emt 0:00:01]} Kg8 {[%emt 0:00:06]} 47. Rh3 {[%emt 0:00:39]} Nxb4 {[%emt 0:00:48]} (47... Ra8 $142 48. Rxh4 Qd8) 48. Rxh4 {[%emt 0:00:43]} Nd3 {[%emt 0:00:01]} 49. Qc2 {[%emt 0:00:02]} Qd8 {[%emt 0:01:46]} 50. Bg3 {[%emt 0:00:43]} Ra3 {[%emt 0:00:08]} 51. Qxc6 {[%emt 0:00:07]} b4 {[%emt 0:00:11]} 52. d7 {[%emt 0:00:12]} Kf7 {[%emt 0:00:42]} 53. Re4 {[%emt 0:00:40]} 1-0

[Event "Indian Rapid Championship 2023-24"]
[Site "Nashik"]
[Date "2024.03.05"]
[Round "5.7"]
[White "Srihari L R"]
[Black "Sidhant, Mohapatra"]
[Result "1-0"]
[ECO "A11"]
[WhiteElo "2490"]
[BlackElo "2379"]
[Annotator "TA"]
[PlyCount "83"]
[EventDate "2024.03.02"]
[EventType "swiss"]
[EventCountry "IND"]
[SourceTitle "playchess.com"]
[Source "ChessBase"]
[SourceQuality "1"]
[TimeControl "900+10"]

{[%evp 13,83,0,23,-14,0,-11,68,-2,0,-6,15,17,44,50,74,49,84,68,118,107,104,122,124,129,154,139,147,151,152,163,156,139,218,212,235,229,222,248,309,195,462,485,446,477,485,481,460,387,419,383,803,902,958,941,982,1043,1293,225,1386,1362,993,926,921,540,1201,1194,6227,6187,1285,5173,29987,29988]} 1. c4 {[%emt 0:00:14]} c6 {[%emt 0:00:03]} 2. g3 {[%emt 0:00:03]} d5 {[%emt 0:00:03]} 3. Bg2 {[%emt 0:00:03]} Nf6 {[%emt 0:00:32]} 4. Nf3 {[%emt 0:00:02]} Bf5 {[%emt 0:00:13]} 5. O-O {[%emt 0:01:40]} e6 {[%emt 0:00:09]} 6. cxd5 {[%emt 0:00:15]} exd5 {[%emt 0:01:59]} 7. d3 {[%emt 0:00:19]} Be7 {[%emt 0:00:07]} 8. Be3 {[%emt 0:00:31]} O-O {[%emt 0:01:15]} 9. Qb3 {[%emt 0:00:06]} Na6 {[%emt 0:00:14]} (9... Qd7 $11) 10. Nc3 {[%emt 0:04:26]} (10. Qxb7 $14 Nb4 11. a3 (11. Bxa7 Qd7 $11)) 10... Qd7 $11 {[%emt 0:03:02]} 11. Rac1 {[%emt 0:01:47]} Bd6 {[%emt 0:00:22]} 12. Bd4 {[%emt 0:00:16]} Ne8 {[%emt 0:00:10]} 13. e4 {[%emt 0:00:15]} dxe4 {[%emt 0:00:08]} 14. dxe4 {[%emt 0:00:01]} Be6 {[%emt 0:00:52]} 15. Qc2 {[%emt 0:00:08] White now steadily converts the win.} Bh3 {[%emt 0:00:08]} (15... Bg4 $14) 16. Rfd1 $16 {[%emt 0:00:51][%cal Od4g7]} Bxg2 {[%emt 0:00:35]} 17. Kxg2 {[%emt 0:00:01]} Qe6 {[%emt 0:00:03]} 18. a3 {[%emt 0:00:45]} h6 {[%emt 0:00:44]} 19. Be3 {[%emt 0:00:11] Against Bf4} Be5 {[%emt 0:00:56]} 20. Nxe5 {[%emt 0:01:10]} Qxe5 {[%emt 0:00:01]} 21. Rd7 {[%emt 0:00:05]} b6 {[%emt 0:01:08]} 22. Rcd1 {[%emt 0:00:21] aiming for f4. White is much more active.} Nc5 {[%emt 0:00:17]} (22... Qe6 $16 {is a better defense.} 23. h3 Nac7) 23. f4 $18 {[%emt 0:00:32]} Qh5 {[%emt 0:00:36]} 24. Bxc5 {[%emt 0:00:03]} Qxc5 {[%emt 0:00:02]} 25. e5 {[%emt 0:00:16] Dodges Nf6} a5 {[%emt 0:01:14] Black is weak on the light squares} 26. R1d4 {[%emt 0:00:55] Black must now prevent b4.} Ra7 $2 {[%emt 0:00:27]} (26... b5) 27. b4 {[%emt 0:01:39]} (27. Rd8 Nc7 28. Rxf8+ (28. R4d7 Nd5 $14) 28... Qxf8 $16) 27... axb4 {[%emt 0:00:11]} 28. axb4 {[%emt 0:00:01]} Rxd7 {[%emt 0:00:07]} 29. bxc5 {[%emt 0:00:02]} Rxd4 {[%emt 0:00:02]} 30. cxb6 {[%emt 0:00:00]} Rb4 {[%emt 0:00:02]} 31. Na4 {[%emt 0:01:17]} g6 $2 {[%emt 0:00:14]} (31... c5 32. Qa2 (32. Nxc5 Rxb6 33. Nd7 Rb7 $18) 32... g6 33. Nxc5 Rxb6) 32. Qxc6 {[%emt 0:00:05]} Ng7 {[%emt 0:00:03]} 33. Nc5 {[%emt 0:00:44]} Rb2+ {[%emt 0:00:12]} 34. Kh3 {[%emt 0:00:42]} Rd8 {[%emt 0:00:26]} 35. Nd7 $2 {[%emt 0:00:00]} (35. b7 Kh8 36. e6 fxe6 37. Qc8 (37. Nxe6 Rg8 $18)) 35... Rd2 $2 {[%emt 0:00:38]} (35... Ne6 36. b7 h5) 36. Nf6+ {[%emt 0:00:00]} Kh8 {[%emt 0:00:01]} 37. b7 {[%emt 0:00:02]} Ne6 {[%emt 0:00:11] Prevents Qc7} 38. Qc8 {[%emt 0:01:04]} Kg7 {[%emt 0:00:01]} 39. b8=Q {[%emt 0:00:29] Intending Ne8+ and mate.} (39. b8=R Nxf4+ 40. gxf4 R8d3+ 41. Kh4 (41. Kg4 Rg2+ 42. Kh4 Rxh2+ 43. Kg4 Rg2+ 44. Kh4 Rh2+ 45. Kg4 Rg2+ 46. Kh4 Rh2+ $11) 41... Rxh2+ 42. Kg4 Rg2+ 43. Kh4 Rh2+ 44. Kg4 Rg2+ 45. Kh4 Rh2+ $11) 39... Nxf4+ {[%emt 0:00:02] [#]} 40. Kg4 $1 {[%emt 0:00:00]} ({Worse is} 40. gxf4 R8d3+ 41. Kh4 Rxh2+ 42. Kg4 (42. Qh3 $2 {is a self mate.} Rhxh3+ 43. Kg4 Rdg3#) 42... Rg2+ 43. Kh4 Rh2+ 44. Kg4 (44. Qh3 $2 {leads to mate.} Rhxh3+ 45. Kg4 Rdg3#) 44... Rg2+ 45. Kh4 Rh2+ $11) 40... Ne6 {[%emt 0:00:48]} 41. Ne8+ {[%emt 0:00:03]} Kh7 {[%emt 0:00:08] [#]} 42. Qxe6 $3 {[%emt 0:00:24] Weighted Error Value: White=0.67/Black=0.66.  Mistake:       	White=1     	Black=5      Inaccurate:     	White=1     	Black=3      OK:         	White=13    	Black=8      Best:        	White=1     	Black=2} 1-0

[Event "Indian Rapid Championship 2023-24"]
[Site "Nashik"]
[Date "2024.03.05"]
[Round "5.8"]
[White "Das, Arghyadip"]
[Black "Wagh Suyog"]
[Result "1-0"]
[ECO "B91"]
[WhiteElo "2405"]
[BlackElo "2250"]
[Annotator "TA"]
[PlyCount "42"]
[EventDate "2024.03.02"]
[EventType "swiss"]
[EventCountry "IND"]
[SourceTitle "playchess.com"]
[Source "ChessBase"]
[SourceQuality "1"]
[TimeControl "900+10"]

{[%evp 19,42,40,41,36,35,0,26,19,14,-1,0,-23,4,4,64,60,125,108,126,119,117,104,90,83,102]} 1. e4 {[%emt 0:00:04]} c5 {[%emt 0:00:01]} 2. Nc3 {[%emt 0:00:05]} a6 {[%emt 0:00:01]} 3. Nge2 {[%emt 0:00:33]} d6 {[%emt 0:00:20]} 4. g3 {[%emt 0:00:03]} Nf6 {[%emt 0:02:21]} 5. Bg2 {[%emt 0:00:03]} g6 {[%emt 0:00:45]} 6. d4 {[%emt 0:02:29]} cxd4 {[%emt 0:00:02]} 7. Nxd4 {[%emt 0:00:02]} Bg7 {[%emt 0:00:05]} 8. O-O {[%emt 0:00:06]} O-O {[%emt 0:00:07]} 9. h3 {[%emt 0:00:01]} Bd7 {[%emt 0:00:38]} 10. Be3 {[%emt 0:01:53]} Nc6 {[%emt 0:00:02]} 11. Nde2 {[%emt 0:00:01]} b5 {[%emt 0:01:24][%cal Bb7b5,Bb5b4][%mdl 32]} 12. a4 {[%emt 0:00:37]} b4 {[%emt 0:02:44]} 13. Nd5 {[%emt 0:00:01] White has an edge.} Rb8 {[%emt 0:01:16]} 14. Rb1 {[%emt 0:01:09]} Bc8 {[%emt 0:04:33]} 15. Bg5 {[%emt 0:01:43]} Nxd5 {[%emt 0:01:06]} 16. exd5 {[%emt 0:00:01]} Na5 {[%emt 0:00:03]} (16... Ne5 $11) 17. b3 $14 {[%emt 0:00:16]} h6 {[%emt 0:00:14]} ({Black should try} 17... Qc7 $14) 18. Be3 $16 {[%emt 0:00:57] White is better.} Qc7 {[%emt 0:00:01]} 19. Qd2 {[%emt 0:00:01]} Kh7 {[%emt 0:00:02]} 20. Rfc1 {[%emt 0:00:43]} Bd7 {[%emt 0:00:38]} 21. h4 {[%emt 0:01:55]} Bg4 {[%emt 0:01:52] Weighted Error Value: White=0.10 (very precise) /Black=0.17 (very precise) .  Mistake:       	---       	Black=2      Inaccurate:     	---       	Black=1      OK:         	White=4     	Black=3} 1-0

[Event "Indian Rapid Championship 2023-24"]
[Site "Nashik"]
[Date "2024.03.05"]
[Round "5.9"]
[White "Vaz, Ethan"]
[Black "Sharma, Dinesh K."]
[Result "1-0"]
[ECO "A04"]
[WhiteElo "2409"]
[BlackElo "2209"]
[Annotator "TA"]
[PlyCount "73"]
[EventDate "2024.03.02"]
[EventType "swiss"]
[EventCountry "IND"]
[SourceTitle "playchess.com"]
[Source "ChessBase"]
[SourceQuality "1"]
[TimeControl "900+10"]

{[%evp 13,73,-11,-6,-18,25,28,21,26,39,35,39,31,62,58,68,57,85,62,93,73,73,56,53,49,63,60,67,68,75,59,47,50,66,58,66,35,25,35,17,-74,0,0,0,11,0,9,64,73,209,202,388,395,521,526,907,894,987,979,1676,1559,1510,1539]} 1. e4 {[%emt 0:00:01]} c5 {[%emt 0:00:03]} 2. Nf3 {[%emt 0:00:05]} d6 {[%emt 0:00:02]} 3. g3 {[%emt 0:00:20]} Nc6 {[%emt 0:00:04]} 4. Bg2 {[%emt 0:00:02]} g6 {[%emt 0:00:01]} 5. O-O {[%emt 0:00:09]} Bg7 {[%emt 0:00:02]} 6. c3 {[%emt 0:00:13]} Nf6 {[%emt 0:00:11]} 7. Qe2 {[%emt 0:00:33]} O-O {[%emt 0:00:09]} 8. Rd1 {[%emt 0:00:49]} d5 {[%emt 0:01:43]} 9. e5 {[%emt 0:00:25]} Ne8 {[%emt 0:00:05]} 10. d4 {[%emt 0:00:25] Die Stellung ist ausgeglichen.} cxd4 {[%emt 0:00:10]} 11. cxd4 {[%emt 0:00:03]} Nc7 {[%emt 0:00:02]} 12. Nc3 {[%emt 0:00:56]} b6 {[%emt 0:00:33]} 13. Be3 {[%emt 0:01:27]} Ba6 {[%emt 0:00:27]} 14. Qd2 {[%emt 0:00:29]} Rc8 {[%emt 0:00:27]} 15. Rac1 {[%emt 0:00:32]} f6 {[%emt 0:01:55]} 16. exf6 {[%emt 0:01:29]} (16. Bh3 {mit weiteren Verwicklungen.} fxe5 17. Nxe5 Bxe5 18. Ne2) 16... exf6 {[%emt 0:00:11]} 17. h4 {[%emt 0:00:46]} Qd7 {[%emt 0:00:42]} 18. Ne1 {[%emt 0:02:02][%cal Bf3e1,Be1d3,Bd3f4][%mdl 32]} Kh8 {[%emt 0:00:32]} 19. Nd3 {[%emt 0:00:23]} Ne7 {[%emt 0:00:38]} 20. Nf4 {[%emt 0:00:31]} Bb7 {[%emt 0:00:23]} 21. Bh3 {[%emt 0:00:18] Weiß steht aktiver.} f5 $1 {[%emt 0:00:02]} 22. Re1 {[%emt 0:00:48]} Rce8 {[%emt 0:00:17]} 23. Bg2 {[%emt 0:01:47]} Ng8 {[%emt 0:00:31]} 24. h5 {[%emt 0:01:09]} g5 {[%emt 0:00:52]} 25. Nd3 {[%emt 0:00:10]} Ne6 {[%emt 0:01:14]} (25... f4 $6 26. gxf4 gxf4 27. Bxf4 $16) 26. Ne2 {[%emt 0:00:54] [#]} (26. Bxg5 Nxg5 27. Qxg5 Bh6 $14) (26. f4 $11 {hält das Gleichgewicht.}) 26... Nf6 {[%emt 0:00:55]} (26... f4 27. gxf4 g4 28. Ng3 $18 (28. Ne5 Qd8 $16)) ({Vorzuziehen ist} 26... Ba6 $1 $17) 27. Ne5 $36 {[%emt 0:00:19][%mdl 2048] Weiss hat Initiative.} Qd6 {[%emt 0:00:08]} 28. Bxg5 {[%emt 0:00:53] Droht h6 und aus.} Ne4 {[%emt 0:01:32]} 29. Bxe4 {[%emt 0:00:04]} dxe4 {[%emt 0:01:27]} (29... fxe4 $11 30. Be3 Nxd4 31. Bxd4 Bxe5) 30. Bh6 $14 {[%emt 0:00:50]} e3 {[%emt 0:00:47] Verliert die Partie.} 31. Bxg7+ {[%emt 0:00:26]} (31. fxe3 $2 {ist das falsche Schlagen.} Bxe5 (31... Bxh6 $2 32. Nf4 $19) 32. Bf4 Nxf4 33. Nxf4 Bxf4 34. exf4 Qd5 $19) (31. Bxe3 $2 {geht unter.} Qd5 $19) 31... Nxg7 $2 {[%emt 0:02:06]} (31... Kxg7 32. Qxe3 Rf6) 32. Qxe3 $18 {[%emt 0:00:07]} Bd5 {[%emt 0:01:18]} 33. Nf4 {[%emt 0:00:19][%cal Be2f4,Bf4d5,Bd5f4][%mdl 32] Weiß steht klar auf Gewinn.} Kg8 {[%emt 0:00:23] [#]} 34. h6 $1 {[%emt 0:00:12]} Qxh6 {[%emt 0:00:29]} (34... Re7 35. hxg7) 35. Nxd5 {[%emt 0:00:03] Hervorragende Reitkunst.} f4 {[%emt 0:00:01]} 36. Qb3 {[%emt 0:00:29] jetzt Nf6+ und aus.} Kh8 {[%emt 0:00:18]} 37. Nxf4 {[%emt 0:00:04] Gewichteter Fehlerwert: Weiß=0.12 (sehr präzise) /Schwarz=0.42.  Fehler:       	Weiß=1     	Schwarz=4     Ungenau:       	Weiß=1     	Schwarz=6     OK:         	Weiß=15    	Schwarz=6     Bester:       	Weiß=3     	Schwarz=1     Stark:        	---       	Schwarz=1} 1-0

[Event "Indian Rapid Championship 2023-24"]
[Site "Nashik"]
[Date "2024.03.05"]
[Round "5.10"]
[White "Sammed Jaykumar, Shete"]
[Black "Kaustuv, Kundu"]
[Result "1-0"]
[ECO "B22"]
[WhiteElo "2404"]
[BlackElo "2388"]
[Annotator "TA"]
[PlyCount "51"]
[EventDate "2024.03.02"]
[EventType "swiss"]
[EventCountry "IND"]
[SourceTitle "playchess.com"]
[Source "ChessBase"]
[SourceQuality "1"]
[TimeControl "900+10"]

{[%evp 12,51,19,18,35,31,61,-19,0,-43,-45,-22,0,-34,36,30,57,57,57,56,230,220,219,207,212,202,257,255,277,245,440,430,446,446,422,432,728,718,715,723,671,600]} 1. e4 {[%emt 0:00:02]} c5 {[%emt 0:02:50]} 2. c3 {[%emt 0:00:03]} d5 {[%emt 0:00:14]} 3. exd5 {[%emt 0:00:03]} Qxd5 {[%emt 0:00:03]} 4. d4 {[%emt 0:00:01]} Nc6 {[%emt 0:00:02]} 5. Nf3 {[%emt 0:00:05]} Bg4 {[%emt 0:00:10]} 6. dxc5 {[%emt 0:01:33]} Qxd1+ {[%emt 0:00:39]} 7. Kxd1 {[%emt 0:00:01]} e5 {[%emt 0:00:02]} 8. b4 {[%emt 0:00:30]} a5 {[%emt 0:01:45]} 9. Bb5 {[%emt 0:04:04]} (9. b5 $14 Nd8 10. Be3) 9... Nge7 {[%emt 0:04:10] The position is equal.} 10. a3 {[%emt 0:01:13]} axb4 {[%emt 0:01:07]} 11. cxb4 {[%emt 0:00:25]} O-O-O+ {[%emt 0:00:08]} 12. Nbd2 {[%emt 0:00:13]} Nd4 {[%emt 0:00:46]} (12... e4 $15 13. Bxc6 Nxc6) 13. Be2 $36 {[%emt 0:00:14][%mdl 2048] Black must now prevent Nxd4. White has some pressure.} Nxe2 {[%emt 0:02:29]} 14. Kxe2 {[%emt 0:00:02]} Nd5 {[%emt 0:00:38]} 15. Re1 $1 {[%emt 0:02:19]} f5 $2 {[%emt 0:01:59] [#] This move loses the game for Black.} ({Black should try} 15... f6 $14) 16. Kf1 $1 $18 {[%emt 0:00:24]} e4 {[%emt 0:00:02]} 17. Ne5 {[%emt 0:00:38]} Bh5 {[%emt 0:00:02] [#] Prevents Nf7.} 18. g4 $1 {[%emt 0:00:22][%mdl 512]} fxg4 {[%emt 0:00:13]} (18... Bxg4 19. Nxg4) 19. Nxe4 {[%emt 0:00:11] Threatens to win with Bg5.} Be7 {[%emt 0:00:02]} 20. Bg5 {[%emt 0:00:27] Hoping for Bxe7.} Rhe8 {[%emt 0:00:35]} (20... Bf6 {was called for.}) 21. Bxe7 {[%emt 0:00:56] White is clearly winning.} Rxe7 {[%emt 0:00:02]} 22. Nd6+ {[%emt 0:00:01] A dynamic duo of knights.} Kb8 {[%emt 0:00:06]} 23. Rad1 {[%emt 0:00:12]} Nf6 {[%emt 0:00:40] [#]} (23... Nc3 $142 24. Rd3 Rc7) 24. Nc6+ $1 {[%emt 0:00:20][%mdl 512]} bxc6 {[%emt 0:00:03]} 25. Rxe7 {[%emt 0:00:01]} g3 {[%emt 0:00:02]} 26. Rd4 {[%emt 0:00:25] Weighted Error Value: White=0.13 (very precise) /Black=0.43.  Loses game:     	---       	Black=1      Mistake:       	White=1     	Black=3      Inaccurate:     	White=2     	Black=1      OK:         	White=7     	Black=4      Best:        	White=1     	Black=2      Strong:       	White=2     	---        Brilliant:      	White=1     	---} 1-0